[Event "German Bundesliga 2022-23"]
[Site "Germany"]
[Date "2022.10.22"]
[Round "1.2"]
[White "Jones, Gawain C B"]
[Black "Korobov, Anton"]
[Result "1-0"]
[ECO "C02"]
[WhiteElo "2626"]
[BlackElo "2672"]
[Annotator "TA"]
[PlyCount "79"]
[EventDate "2022.10.21"]
[EventType "team-tourn"]
[EventCountry "GER"]
[SourceTitle "playchess.com"]
[Source "ChessBase"]
[SourceQuality "1"]
[TimeControl "40/6000+30:3000+30"]

{[%evp 15,79,0,0,-10,0,0,0,0,0,-14,35,0,16,0,0,0,0,0,0,-20,-14,-14,0,0,0,0,0,-20,91,94,100,99,136,133,235,245,693,415,381,390,547,74,512,512,512,504,512,512,512,512,512,504,472,452,979,969,969,966,29972,29973,29973,29974,29971,29973,6179,2418]} 1. e4 {[%emt 0:00:43]} e6 {[%emt 0:00:08]} 2. d4 {[%emt 0:00:06]} d5 {[%emt 0:00:06]} 3. e5 {[%emt 0:00:04]} c5 {[%emt 0:00:26][%cal Bc7c5,Bc5c4][%mdl 32]} 4. c3 {[%emt 0:00:04]} Nc6 {[%emt 0:00:05]} 5. Nf3 {[%emt 0:00:05]} Qb6 {[%emt 0:00:09]} 6. a3 {[%emt 0:00:52]} c4 {[%emt 0:00:11]} 7. Nbd2 {[%emt 0:00:33]} Na5 {[%emt 0:00:18]} 8. Rb1 $1 {[%emt 0:00:33][%mdl 4] is currently scoring better than 8.Be2.} Bd7 {[%emt 0:00:09]} 9. h4 {[%emt 0:00:25] C02: French: Advance Variation.} h6 {[%emt 0:06:07]} 10. b4 {[%emt 0:01:19]} cxb3 $1 {[%emt 0:04:17]} 11. Nxb3 {[%emt 0:00:08] [#] The position is equal.} Ba4 $146 {[%emt 0:02:45][%cal Ra4b3]} ({Predecessor:} 11... Nxb3 12. Qxb3 Qxb3 13. Rxb3 b6 14. Bb5 Ne7 15. a4 Nc6 16. h5 Na5 17. Rb1 Rc8 {1-0 (58) Giri,A (2777)-Vitiugov,N (2727) Yasnaya Polyana 2021}) 12. Nfd2 {[%emt 0:01:40]} Qc7 {[%emt 0:05:58]} (12... Rc8 $11) 13. Rh3 {[%emt 0:11:28]} (13. Qf3 $5 {[%cal Rb3a5]}) 13... Ne7 {[%emt 0:02:36]} 14. Qf3 {[%emt 0:24:11]} Nec6 {[%emt 0:05:38]} 15. Nxa5 {[%emt 0:05:46]} Nxa5 {[%emt 0:00:32]} 16. Bd3 {[%emt 0:00:21] Prevents Bc2.} Rc8 {[%emt 0:05:01]} 17. Qf4 {[%emt 0:06:26]} a6 {[%emt 0:10:08]} 18. Rf3 {[%emt 0:04:48]} b5 {[%emt 0:04:19]} 19. h5 {[%emt 0:02:24]} Qd7 {[%emt 0:08:08]} 20. Be2 {[%emt 0:08:39]} Bc2 {[%emt 0:02:27]} 21. Ra1 {[%emt 0:01:53]} g5 {[%emt 0:07:07]} (21... Rc6 $11 {keeps the balance.}) 22. hxg6 $1 $16 {[%emt 0:02:49]} Bxg6 {[%emt 0:02:37]} 23. a4 $1 {[%emt 0:02:57] aiming for axb5.} b4 {[%emt 0:17:07]} 24. cxb4 {[%emt 0:03:10]} Bxb4 {[%emt 0:02:46]} (24... Nc4 $16) 25. Bxa6 $18 {[%emt 0:01:32]} O-O $2 {[%emt 0:03:18]} (25... Rc2 26. Bb5 Nc6) 26. Bxc8 {[%emt 0:09:35]} Rxc8 {[%emt 0:00:44]} 27. Qxh6 {[%emt 0:00:40] Intending Rh3 and mate.} Rc3 {[%emt 0:02:09]} (27... Bf8 {might work better.} 28. Qf4 Rb8) 28. Kf1 $2 {[%emt 0:04:55]} (28. Ba3 $18 Qxa4 29. Bxb4 $1 Qxa1+ 30. Ke2 Rxf3 31. Qf8+ (31. gxf3 $2 Qxd4 32. Qf8+ Kh7 $19) (31. Kxf3 Nc6 $11) (31. Nxf3 Qa2+ 32. Nd2 Nb3 $14) 31... Kh7 32. Nxf3) 28... Rxf3 $4 {[%emt 0:05:47][%mdl 8192] A mistake that costs the game.} (28... Qc6 $16 {is tougher.} 29. Bb2 (29. Ba3 Bxa3 30. Kg1 Rxf3 $15) 29... Rxf3 30. Nxf3 (30. gxf3 Bxd2 31. Qxd2 Nb3 $14) 30... Nb3) 29. Nxf3 {[%emt 0:00:19]} ({Less strong is} 29. gxf3 Qa7 $18) 29... Nb3 {[%emt 0:01:13]} 30. Ra2 {[%emt 0:01:31] Bg5 is the strong threat.} Qc6 {[%emt 0:04:28]} 31. Bg5 {[%emt 0:08:44]} Bf8 {[%emt 0:01:03]} 32. Qh4 {[%emt 0:00:07]} Qc4+ {[%emt 0:02:44] [#]} 33. Kg1 $1 {[%emt 0:00:08]} Nxd4 {[%emt 0:00:40]} 34. Bf6 {[%emt 0:03:33][%csl Gf6][%cal Rh4h8]} ({Not} 34. Qxd4 Qxa2 35. Bd2 Be4 $16) 34... Bg7 {[%emt 0:01:31] [#] Inhibits Qh8+.} (34... Nxf3+ $142 35. gxf3 Qxh4 36. Bxh4 Bd3) 35. Nxd4 $1 {[%emt 0:01:03][%cal Bf3d4,Bd4c6,Bc6e7][%mdl 32] Hoping for Ra1.} Qxa2 {[%emt 0:00:31]} 36. Nc6 {[%emt 0:00:22] And now Ne7+ would win.} ({Weaker is} 36. Bxg7 Kxg7 37. Kh2 Qc4 $16) 36... Kf8 {[%emt 0:04:00]} 37. Qb4+ {[%emt 0:01:08]} Kg8 {[%emt 0:00:17]} 38. Ne7+ {[%emt 0:00:57]} Kh7 {[%emt 0:00:01]} 39. Qh4+ {[%emt 0:02:38]} Bh6 {[%emt 0:00:06]} 40. Bg5 {[%emt 0:00:58] Weighted Error Value: White=0.32/Black=0.89} 1-0

[Event "German Bundesliga 2022-23"]
[Site "Germany"]
[Date "2022.10.23"]
[Round "1.2"]
[White "Svane, Rasmus"]
[Black "Krassowizkij, Jaroslaw"]
[Result "1-0"]
[ECO "E05"]
[WhiteElo "2615"]
[BlackElo "2439"]
[Annotator "ChessBase"]
[PlyCount "113"]
[EventDate "2022.10.21"]
[EventType "team-tourn"]
[EventCountry "GER"]
[SourceTitle "playchess.com"]
[Source "ChessBase"]
[SourceQuality "1"]
[TimeControl "40/6000+30:3000+30"]

1. d4 {[%emt 0:00:03]} d5 {[%emt 0:00:04]} 2. c4 {[%emt 0:00:18]} e6 {[%emt 0:00:04]} 3. Nf3 {[%emt 0:01:02]} Nf6 {[%emt 0:00:12]} 4. g3 {[%emt 0:00:07]} Be7 {[%emt 0:01:16]} 5. Bg2 {[%emt 0:00:08]} O-O {[%emt 0:00:06]} 6. O-O {[%emt 0:01:01]} dxc4 {[%emt 0:00:11]} 7. Qa4 {[%emt 0:00:15]} a6 {[%emt 0:00:28]} 8. Qxc4 {[%emt 0:00:06]} b5 {[%emt 0:00:09]} 9. Qc2 {[%emt 0:00:05]} Bb7 {[%emt 0:00:06]} 10. Bd2 {[%emt 0:00:39]} Be4 {[%emt 0:00:16]} 11. Qc1 {[%emt 0:00:07]} c6 {[%emt 0:02:18]} 12. a4 {[%emt 0:03:03]} b4 {[%emt 0:06:05]} 13. Bg5 {[%emt 0:36:39]} Bxf3 {[%emt 0:14:08]} 14. Bxf3 {[%emt 0:00:14]} Qxd4 {[%emt 0:00:07]} 15. Nd2 {[%emt 0:14:07]} Nd5 {[%emt 0:11:06]} 16. Bxe7 {[%emt 0:02:26]} Nxe7 {[%emt 0:01:02]} 17. Nb3 {[%emt 0:00:21]} Qa7 {[%emt 0:17:41]} 18. Rd1 {[%emt 0:00:42]} a5 {[%emt 0:19:34]} 19. Qd2 {[%emt 0:11:02]} Nd5 {[%emt 0:04:25]} 20. Rac1 {[%emt 0:03:11]} Nd7 {[%emt 0:05:12]} 21. Rxc6 {[%emt 0:10:11]} N7b6 {[%emt 0:01:58]} 22. Qc2 {[%emt 0:12:00]} Rac8 {[%emt 0:13:38]} 23. Bxd5 {[%emt 0:04:51]} exd5 {[%emt 0:00:04]} 24. Rxc8 {[%emt 0:01:02]} Rxc8 {[%emt 0:00:41]} 25. Rxd5 {[%emt 0:00:53]} Qa8 {[%emt 0:09:05]} 26. Rc5 {[%emt 0:00:08]} Rxc5 {[%emt 0:00:04]} 27. Qxc5 {[%emt 0:07:00]} Nxa4 {[%emt 0:00:04]} 28. Qb5 {[%emt 0:02:05]} Nxb2 {[%emt 0:00:05]} 29. Nxa5 {[%emt 0:00:06]} h6 {[%emt 0:02:52]} 30. Qxb4 {[%emt 0:00:08]} Qd5 {[%emt 0:00:38]} 31. Qb8+ {[%emt 0:01:25]} Kh7 {[%emt 0:00:07]} 32. Qxb2 {[%emt 0:00:22]} Qxa5 {[%emt 0:00:02]} 33. Qc2+ {[%emt 0:00:31]} g6 {[%emt 0:00:57]} 34. Qb2 {[%emt 0:00:06]} h5 {[%emt 0:00:50]} 35. Kg2 {[%emt 0:00:20]} Kg8 {[%emt 0:01:04]} 36. Qd4 {[%emt 0:00:16]} Qa8+ {[%emt 0:00:23]} 37. f3 {[%emt 0:00:14]} Qa2 {[%emt 0:00:09]} 38. Qe5 {[%emt 0:00:09]} Qc2 {[%emt 0:00:47]} 39. Kf2 {[%emt 0:01:22]} Qc1 {[%emt 0:00:30]} 40. Qe8+ {[%emt 0:00:36]} Kg7 {[%emt 0:00:06]} 41. Qe5+ {[%emt 0:50:15]} Kg8 {[%emt 0:50:45]} 42. Kg2 {[%emt 0:00:20]} Qc2 {[%emt 0:00:48]} 43. Kh3 {[%emt 0:00:00]} Qc8+ {[%emt 0:00:00]} 44. Kh4 {[%emt 0:00:00]} Qd8+ {[%emt 0:00:00]} 45. Qg5 {[%emt 0:00:00]} Qd4+ {[%emt 0:00:00]} 46. e4 {[%emt 0:00:00]} Qf2 {[%emt 0:00:00]} 47. Qf6 {[%emt 0:00:00]} Qxh2+ {[%emt 0:00:00]} 48. Kg5 {[%emt 0:00:00]} Qd2+ {[%emt 0:00:00]} 49. f4 {[%emt 0:00:00]} Qb4 {[%emt 0:00:00]} 50. e5 {[%emt 0:00:00]} Qc5 {[%emt 0:00:00]} 51. Qd6 {[%emt 0:00:00]} Qc8 {[%emt 0:00:00]} 52. e6 {[%emt 0:01:23]} Kh7 {[%emt 0:00:00]} 53. f5 {[%emt 0:02:08]} Qc2 {[%emt 0:00:00]} 54. Qd5 {[%emt 0:02:34]} Kg7 {[%emt 0:00:00]} 55. Qe5+ {[%emt 0:00:56]} Kf8 {[%emt 0:00:22]} 56. Qh8+ {[%emt 0:00:55]} Ke7 {[%emt 0:00:05]} 57. Qf6+ {[%emt 0:00:04]} 1-0

[Event "German Bundesliga 2022-23"]
[Site "Germany"]
[Date "2022.10.22"]
[Round "1.3"]
[White "Amin, Bassem"]
[Black "Saric, Ivan"]
[Result "1/2-1/2"]
[ECO "A04"]
[WhiteElo "2667"]
[BlackElo "2668"]
[Annotator "TA"]
[PlyCount "144"]
[EventDate "2022.10.21"]
[EventType "team-tourn"]
[EventCountry "GER"]
[SourceTitle "playchess.com"]
[Source "ChessBase"]
[SourceQuality "1"]
[TimeControl "40/6000+30:3000+30"]

{[%evp 11,144,12,10,11,5,0,0,-23,-16,-27,-13,-17,-14,-22,-20,-45,-44,-33,-6,-20,0,0,0,0,2,0,23,25,21,29,47,25,58,40,64,59,77,77,77,77,77,77,77,77,77,77,93,74,70,48,48,48,77,48,77,77,77,48,48,48,48,48,48,48,48,48,77,69,69,55,55,48,48,48,48,48,48,0,75,75,75,75,75,75,75,75,75,75,75,48,75,75,75,48,48,48,48,48,48,48,75,48,75,48,48,48,48,48,48,48,48,48,50,52,52,54,71,71,111,75,75,71,71,71,71,48,95,95,95,95,98,98,110,111,111]} 1. Nf3 {[%emt 0:01:13]} Nf6 {[%emt 0:02:35]} 2. g3 {[%emt 0:00:10]} c5 {[%emt 0:00:36]} 3. Bg2 {[%emt 0:00:10]} Nc6 {[%emt 0:00:05]} 4. O-O {[%emt 0:00:49]} e5 {[%emt 0:14:10]} 5. e4 {[%emt 0:00:21]} Be7 {[%emt 0:00:23]} 6. Re1 {[%emt 0:02:58]} d6 {[%emt 0:00:57]} 7. c3 {[%emt 0:00:23] A04: Unusual lines after 1 Nf3 and King's Indian Attack.} O-O {[%emt 0:00:35]} 8. h3 {[%emt 0:00:19]} Be6 {[%emt 0:03:10]} 9. Na3 {[%emt 0:05:18] The position is equal.} h6 {[%emt 0:01:26]} 10. d3 {[%emt 0:04:45]} Re8 {[%emt 0:10:15] [#]} 11. Nc2 $146 {[%emt 0:02:45]} ({Predecessor:} 11. Kh2 Bf8 12. Nc2 g6 13. d4 exd4 14. cxd4 d5 15. exd5 Bxd5 16. dxc5 Be4 17. Ne3 Bxc5 {1-0 (44) Van Wely,L (2647)-Bok,B (2562) Amsterdam 2015}) 11... Bf8 {[%emt 0:01:29]} 12. b4 {[%emt 0:09:25]} cxb4 {[%emt 0:02:46]} 13. cxb4 {[%emt 0:00:42]} a5 {[%emt 0:04:33]} 14. bxa5 {[%emt 0:12:40]} Rxa5 {[%emt 0:06:36]} 15. d4 $1 {[%emt 0:04:55]} exd4 {[%emt 0:09:03]} ({Don't do} 15... Rxa2 16. d5 Rxa1 17. Nxa1 $16) 16. Nfxd4 {[%emt 0:01:02]} Bd7 {[%emt 0:02:40]} 17. Bb2 {[%emt 0:02:32]} Ra4 {[%emt 0:15:05]} 18. a3 {[%emt 0:12:50]} Nxd4 {[%emt 0:01:19]} 19. Bxd4 {[%emt 0:01:27]} d5 {[%emt 0:11:29]} 20. exd5 {[%emt 0:03:34]} Rxe1+ {[%emt 0:00:04]} 21. Qxe1 {[%emt 0:00:50]} Bf5 {[%emt 0:01:08]} 22. Nb4 {[%emt 0:06:38]} Qa5 {[%emt 0:03:43]} 23. Qe5 {[%emt 0:07:54]} Rxa3 {[%emt 0:12:18]} 24. Rxa3 {[%emt 0:00:28]} Qxa3 {[%emt 0:00:03]} 25. Qxf5 {[%emt 0:03:06]} Qxb4 {[%emt 0:00:09]} 26. Bxf6 {[%emt 0:06:03] A strong pair of Bishops.} Qe1+ {[%emt 0:00:23]} 27. Bf1 {[%emt 0:02:00]} gxf6 {[%emt 0:00:04]} 28. Qxf6 $16 {[%emt 0:00:49][%mdl 4096] Endgame KQB-KQB} Qe4 {[%emt 0:01:30]} 29. d6 {[%emt 0:08:33]} Qg6 {[%emt 0:03:08]} 30. Qf3 {[%emt 0:06:06] [#] aiming for d7.} Bxd6 {[%emt 0:00:13]} 31. Qxb7 {[%emt 0:00:02]} Kg7 {[%emt 0:02:10]} 32. Kg2 {[%emt 0:00:24]} Qf6 {[%emt 0:00:13]} 33. Qd5 {[%emt 0:00:51]} Bc7 {[%emt 0:00:19]} 34. h4 {[%emt 0:01:51]} Bb6 {[%emt 0:00:04]} 35. Qd2 {[%emt 0:00:59]} Qd4 {[%emt 0:00:51]} 36. Qe2 {[%emt 0:00:55]} (36. Bd3 {feels hotter.} Qd5+ 37. f3 Qd4 38. Qe2) 36... Qd5+ {[%emt 0:00:03]} 37. Kg1 {[%emt 0:00:21]} Qd4 {[%emt 0:00:09]} 38. Bh3 {[%emt 0:01:12]} Bc7 {[%emt 0:00:47]} 39. Kg2 {[%emt 0:00:16]} Qd5+ {[%emt 0:00:05]} 40. Kh2 {[%emt 0:01:07]} Qd4 {[%emt 0:00:05]} 41. f4 {[%emt 0:50:58]} Qf6 {[%emt 0:06:26]} 42. Bg2 {[%emt 0:00:00]} Qe6 {[%emt 0:00:56]} 43. Qb2+ {[%emt 0:00:00]} Qf6 {[%emt 0:00:06]} 44. Qe2 {[%emt 0:00:00]} Qe6 $1 {[%emt 0:00:28]} 45. Qd1 {[%emt 0:00:00]} Bd6 {[%emt 0:02:20]} 46. Bd5 {[%emt 0:00:00]} Qf6 {[%emt 0:00:55]} 47. Qg4+ {[%emt 0:00:00]} Qg6 {[%emt 0:00:46]} 48. Qd7 {[%emt 0:00:00][%cal Od5f7] And now Bxf7! would win.} Bf8 {[%emt 0:00:13]} 49. Bb3 {[%emt 0:00:00]} Qf6 {[%emt 0:00:27] [#] Strongly threatening ...Qb2+.} 50. Bc2 {[%emt 0:00:00]} Bd6 {[%emt 0:02:24]} 51. Qg4+ {[%emt 0:00:00]} Kf8 {[%emt 0:01:28]} 52. Bh7 {[%emt 0:00:00]} Qe6 {[%emt 0:00:58]} 53. Qd1 {[%emt 0:00:00]} Qf6 {[%emt 0:01:40][%cal Od6f4]} 54. Qf3 {[%emt 0:00:00]} Qb2+ {[%emt 0:00:15]} 55. Kh3 {[%emt 0:00:00]} Kg7 {[%emt 0:02:07]} 56. Bf5 {[%emt 0:00:00]} Qf6 {[%emt 0:00:27]} 57. Qd5 {[%emt 0:00:00]} Bc7 {[%emt 0:02:17]} 58. Kg4 {[%emt 0:00:00]} Bb6 {[%emt 0:02:21]} 59. Kh5 {[%emt 0:00:00]} Bf2 {[%emt 0:01:30]} 60. Qd3 {[%emt 0:00:00]} Be1 {[%emt 0:00:19]} 61. Be4 {[%emt 0:00:00]} Bb4 {[%emt 0:09:23]} 62. Qe2 {[%emt 0:00:00]} Kg8 {[%emt 0:05:50]} 63. Bb1 {[%emt 0:00:00]} ({Much less strong is} 63. Qg4+ Kh8 64. Qe2 (64. Qc8+ Kg7 $16) 64... Kg7 65. Qg4+ Kh8 66. Qc8+ Kg7 $16) 63... Bf8 {[%emt 0:01:35]} 64. Qe4 {[%emt 0:00:00][%csl Gb1][%cal Re4h7]} Bg7 {[%emt 0:00:21]} 65. Ba2 {[%emt 0:00:00]} Bf8 {[%emt 0:00:40]} 66. Bc4 {[%emt 0:00:00] Active counter play!} Kg7 {[%emt 0:08:50]} 67. Bd3 {[%emt 0:00:00][%csl Gd3][%cal Re4h7]} Bc5 {[%emt 0:05:24]} 68. Bc2 {[%emt 0:00:00]} Qg6+ {[%emt 0:00:57]} (68... Bf2 $14) 69. Qxg6+ {[%emt 0:00:00] White is better.} fxg6+ {[%emt 0:00:04]} 70. Bxg6 {[%emt 0:00:00]} Bf2 {[%emt 0:00:02]} 71. g4 {[%emt 0:00:00]} Be3 {[%emt 0:00:09]} 72. f5 {[%emt 0:00:00]} Kf6 {[%emt 0:00:04] Prevents g5+.  Weighted Error Value: White=0.07 (flawless) /Black=0.07 (flawless)} 1/2-1/2

[Event "German Bundesliga 2022-23"]
[Site "Germany"]
[Date "2022.10.22"]
[Round "1.3"]
[White "Baldauf, Marco"]
[Black "Tabatabaei, M. Amin"]
[Result "0-1"]
[ECO "D14"]
[WhiteElo "2506"]
[BlackElo "2657"]
[Annotator "TA"]
[PlyCount "86"]
[EventDate "2022.10.21"]
[EventType "team-tourn"]
[EventCountry "GER"]
[SourceTitle "playchess.com"]
[Source "ChessBase"]
[SourceQuality "1"]
[TimeControl "40/6000+30:3000+30"]

{[%evp 20,86,11,14,19,20,0,0,0,0,0,0,0,0,0,0,10,-62,-55,-52,-45,-57,-68,-55,-58,-72,-27,-25,-26,-29,-13,-12,-10,-52,-45,-39,-54,-50,-40,-50,-48,-50,-38,-46,-32,-44,-27,-41,-24,-88,-89,-109,-103,-135,-130,-127,-108,-127,-113,-101,-104,-232,-194,-232,-200,-243,-250,-1112,-1106]} 1. d4 {[%emt 0:00:02]} d5 {[%emt 0:01:15]} 2. c4 {[%emt 0:00:04]} c6 {[%emt 0:00:08]} 3. cxd5 {[%emt 0:00:17]} cxd5 {[%emt 0:00:11]} 4. Nc3 {[%emt 0:00:22]} Nc6 {[%emt 0:01:13]} 5. Nf3 {[%emt 0:02:31]} Nf6 {[%emt 0:13:48]} 6. Bf4 {[%emt 0:00:13]} Bf5 {[%emt 0:00:15]} 7. e3 {[%emt 0:00:21]} e6 {[%emt 0:00:21]} 8. Qb3 {[%emt 0:01:05]} Bb4 {[%emt 0:00:56]} 9. Bb5 {[%emt 0:02:11]} O-O {[%emt 0:01:33]} 10. Bxc6 {[%emt 0:01:12] is now debated instead of 10.0-0.} Bxc3+ {[%emt 0:00:10]} 11. Qxc3 {[%emt 0:00:10]} Rc8 {[%emt 0:13:52][%mdl 64] [#] Pin. D14: Slav Defence: Exchange variation with ...Bf5.} 12. Ne5 {[%emt 0:00:32][%cal Oe1g1]} bxc6 {[%emt 0:12:21]} 13. Rc1 {[%emt 0:16:16]} c5 {[%emt 0:04:25] The position is equal.} 14. dxc5 {[%emt 0:02:28]} Ne4 {[%emt 0:00:09][%csl LRc3,LRc5] Against Bg5} 15. Qa3 {[%emt 0:02:22]} f6 {[%emt 0:00:11]} 16. Nf3 {[%emt 0:10:30]} (16. Qxa7 $2 fxe5 17. Bg3 Nxg3 18. hxg3 Ra8 $19) 16... e5 $36 {[%emt 0:02:30][%mdl 2048] Against Nd4. White is under pressure.} 17. Bg3 {[%emt 0:00:03]} Qe7 {[%emt 0:03:04][%cal Rc8c5]} 18. b4 {[%emt 0:06:51]} (18. O-O $11) 18... a5 $1 $15 {[%emt 0:03:35] [#] Black is more active.} 19. bxa5 $146 {[%emt 0:04:18]} ({Predecessor:} 19. Qxa5 Ra8 20. Qb5 Rfb8 21. Qe2 Rxb4 22. c6 Nc3 23. Qd2 Rxa2 24. Qxc3 Rc4 25. O-O Rxc3 26. Rxc3 {0-1 (49) Andersson,T (2336)-Blomqvist,E (2496) Borlange 2014}) 19... Rxc5 {[%emt 0:01:00]} ({Much worse is} 19... Nxc5 20. O-O $11) 20. Rxc5 {[%emt 0:18:57]} Qxc5 {[%emt 0:00:11]} ({But not} 20... Nxc5 21. O-O $11) 21. Qxc5 {[%emt 0:00:05]} Nxc5 {[%emt 0:00:05]} 22. Nd2 {[%emt 0:00:13]} Nd3+ {[%emt 0:09:43][%mdl 1024] Black has strong compensation.} (22... Ra8 $5 {[%cal Ra8a5]} 23. Nb3 Nxb3 24. axb3 Rxa5 $17) 23. Ke2 {[%emt 0:00:28]} Rc8 {[%emt 0:00:05]} 24. Ra1 {[%emt 0:02:16]} Rc2 {[%emt 0:11:04]} 25. a6 {[%emt 0:08:19] Strongly threatening a7.} Rc6 {[%emt 0:00:30]} 26. f3 {[%emt 0:01:30]} Nb4 $1 {[%emt 0:01:21]} ({Don't play} 26... Rxa6 27. e4 dxe4 28. fxe4 Nf4+ 29. Bxf4 Bg4+ 30. Ke3 Ra3+ 31. Nb3 exf4+ 32. Kxf4 $11) 27. e4 {[%emt 0:07:59]} dxe4 {[%emt 0:00:06]} 28. Nxe4 {[%emt 0:00:16] Black must now prevent a7.} Nc2 {[%emt 0:03:39]} 29. Rb1 {[%emt 0:04:02]} Rxa6 {[%emt 0:00:19] Hoping for ...Bxe4.} 30. Rb2 {[%emt 0:00:17]} Nd4+ {[%emt 0:01:31]} 31. Kd2 {[%emt 0:01:26]} Bxe4 {[%emt 0:01:01]} 32. fxe4 {[%emt 0:00:08][%mdl 4096] Endgame KRB-KRN} Ne6 {[%emt 0:00:03]} 33. Kc3 {[%emt 0:07:38]} Rc6+ {[%emt 0:11:47]} 34. Kd3 {[%emt 0:03:42] [#]} (34. Kb4 $1 $11) 34... Nc5+ $1 $17 {[%emt 0:00:28]} 35. Kc4 {[%emt 0:04:09]} Na4+ {[%emt 0:00:11]} (35... Nxe4+ $2 36. Kd5 Ra6 37. Kxe4 $18) 36. Kd5 {[%emt 0:00:05] And now Rb8+ would win.} Rc8 {[%emt 0:00:10] Prevents Rb8.} 37. Rb4 {[%emt 0:02:36]} Nc3+ {[%emt 0:00:16]} 38. Ke6 {[%emt 0:00:08]} Nxa2 {[%emt 0:00:04]} 39. Rb2 {[%emt 0:00:56]} Nc1 {[%emt 0:01:17]} 40. Rb7 {[%emt 0:02:38] This move loses the game for White.} (40. Kf5 $17 {keeps fighting.}) 40... Nd3 {[%emt 0:07:40] Threatens to win with ...Nc5+.} 41. Ra7 {[%emt 0:01:25]} Nc5+ {[%emt 0:02:54]} 42. Kd5 {[%emt 0:02:51]} Nb3 {[%emt 0:00:27]} 43. Rb7 $2 {[%emt 0:07:24]} (43. Ra3 Rd8+ 44. Ke6 Nc5+ 45. Kf5) 43... Rd8+ {[%emt 0:00:21] Weighted Error Value: White=0.40/Black=0.07 (flawless)} 0-1

[Event "German Bundesliga 2022-23"]
[Site "Germany"]
[Date "2022.10.23"]
[Round "1.3"]
[White "Koelle, Tobias"]
[Black "Kempinski, Robert"]
[Result "0-1"]
[ECO "D16"]
[WhiteElo "2439"]
[BlackElo "2541"]
[Annotator "ChessBase"]
[PlyCount "80"]
[EventDate "2022.10.21"]
[EventType "team-tourn"]
[EventCountry "GER"]
[SourceTitle "playchess.com"]
[Source "ChessBase"]
[SourceQuality "1"]
[TimeControl "40/6000+30:3000+30"]

1. d4 d5 2. c4 c6 3. Nf3 Nf6 4. Nc3 dxc4 5. a4 e6 6. e3 c5 7. Bxc4 Nc6 8. O-O cxd4 9. exd4 Be7 10. Qe2 O-O 11. Rd1 Nb4 12. Bg5 h6 13. Bh4 Bd7 14. Ne5 Bc6 15. Nxc6 bxc6 16. Rac1 Rb8 17. Bg3 Bd6 18. Be5 Qe7 19. Na2 Nbd5 20. Rc2 Rfd8 21. Ba6 Bxe5 22. dxe5 Nd7 23. g3 Nc5 24. Qc4 Nxa6 25. Qxa6 Ne3 26. Rxd8+ Qxd8 27. Rc1 Rxb2 28. Qxc6 Ng4 29. Qc8 Qxc8 30. Rxc8+ Kh7 31. Nc3 Nxf2 32. Nb5 a6 33. Nd6 Nh3+ 34. Kh1 Kg6 35. Rc7 Ng5 36. Rc3 Re2 37. h4 Ne4 38. Rf3 f5 39. Rb3 Kh5 40. Nxe4 Rxe4 0-1

[Event "German Bundesliga 2022-23"]
[Site "Germany"]
[Date "2022.10.22"]
[Round "1.4"]
[White "Alonso Rosell, Alvar"]
[Black "Kaasen, Tor Fredrik"]
[Result "1/2-1/2"]
[ECO "D94"]
[WhiteElo "2563"]
[BlackElo "2445"]
[Annotator "TA"]
[PlyCount "55"]
[EventDate "2022.10.21"]
[EventType "team-tourn"]
[EventCountry "GER"]
[SourceTitle "playchess.com"]
[Source "ChessBase"]
[SourceQuality "1"]
[TimeControl "40/6000+30:3000+30"]

{[%evp 15,55,7,13,11,6,5,11,12,9,9,9,8,9,6,13,13,13,13,13,13,13,13,13,13,13,13,13,13,13,13,13,13,13,13,13,13,20,6,13,13,13,5]} 1. d4 {[%emt 0:00:03]} Nf6 {[%emt 0:00:18]} 2. c4 {[%emt 0:00:03]} g6 {[%emt 0:00:34]} 3. Nf3 {[%emt 0:00:31]} Bg7 {[%emt 0:00:13]} 4. Nc3 {[%emt 0:00:15]} d5 {[%emt 0:00:34]} 5. e3 {[%emt 0:00:06]} O-O {[%emt 0:01:18]} 6. cxd5 {[%emt 0:01:43]} Nxd5 {[%emt 0:00:16]} 7. Bc4 {[%emt 0:00:06]} Nb6 {[%emt 0:04:48]} 8. Bb3 {[%emt 0:00:22]} c5 {[%emt 0:00:26] The position is equal. 8...c5 is better than 8...Nc6.} 9. O-O {[%emt 0:00:28] D94: Grünfeld: 4 Nf3 Bg7 5 e3.} Bg4 {[%emt 0:03:40]} 10. dxc5 {[%emt 0:31:15] [#] And now Qxd8 would win.} N6d7 {[%emt 0:08:24]} 11. Na4 {[%emt 0:02:26] [#]} Qc7 $146 {[%emt 0:12:58]} ({Predecessor:} 11... Na6 12. c6 bxc6 13. h3 Bxf3 14. Qxf3 Ne5 15. Qe2 Qd3 16. Qxd3 Nxd3 17. Bc4 Nac5 18. Nxc5 Nxc5 {½-½ (84) Lin,Y (2119)-Xu,X (2466) Wuxi 2016}) 12. h3 {[%emt 0:06:05]} Bxf3 {[%emt 0:00:45]} 13. Qxf3 {[%emt 0:00:03]} Na6 {[%emt 0:02:15]} 14. Bd2 {[%emt 0:03:10]} Naxc5 {[%emt 0:09:33]} 15. Rac1 {[%emt 0:00:56]} Rac8 {[%emt 0:01:41]} 16. Nxc5 {[%emt 0:17:14]} Nxc5 {[%emt 0:00:16]} 17. Bb4 {[%emt 0:00:05]} b6 {[%emt 0:02:56]} 18. Bxc5 {[%emt 0:00:23]} bxc5 {[%emt 0:00:17]} 19. Rc2 {[%emt 0:00:08]} e6 {[%emt 0:02:00]} 20. Bc4 {[%emt 0:01:42]} a5 {[%emt 0:04:13]} 21. b3 {[%emt 0:08:56]} Rfd8 {[%emt 0:04:26]} 22. Rd1 {[%emt 0:00:15]} Rxd1+ {[%emt 0:00:47]} 23. Qxd1 {[%emt 0:00:02]} Rd8 {[%emt 0:00:38]} 24. Rd2 {[%emt 0:00:36]} Bf6 {[%emt 0:00:21]} 25. Rxd8+ {[%emt 0:04:46]} Qxd8 {[%emt 0:00:18]} 26. Qf3 {[%emt 0:01:06]} Kg7 {[%emt 0:01:31]} 27. g3 {[%emt 0:00:09]} Bc3 {[%emt 0:02:18]} 28. Kg2 {[%emt 0:02:24] An interesting draw.  Weighted Error Value: White=0.01 (flawless) /Black=0.01 (flawless)} 1/2-1/2